fUST/lending_fUST_20251112
["ID","MTS","AMOUNT","RATE_DAILY","PERIOD"]
[393658165,1762888375470,950.842321,0.00021115,7]
[393658166,1762888375761,950.842321,0.000249,7]
[393658167,1762888376896,950.842321,0.00021115,7]
[393658168,1762888377184,950.842321,0.000249,7]
[393658169,1762888378319,950.842321,0.00021115,7]
[393658170,1762888378599,950.842321,0.000249,7]
[393658171,1762888379747,950.842321,0.00021115,7]
[393658172,1762888380059,950.842321,0.000249,7]
[393658173,1762888387052,151.0,0.00024658,7]
[393658174,1762888387359,151.0,0.000249,7]
[393658175,1762888390734,151.0,0.00024658,7]
[393658176,1762888391023,153.598122,0.000249,7]
[393658177,1762888409245,151.0,0.00024658,7]
[393658178,1762888409532,151.0,0.00024658,7]
[393658179,1762888435318,170.749668,0.0002111,7]
[393658180,1762888435597,170.749668,0.00021115,7]
[393658181,1762888435880,170.749668,0.000248,7]
[393658182,1762888436173,170.749668,0.000249,7]
[393658183,1762888436748,170.749668,0.0002111,7]
[393658184,1762888437034,170.749668,0.00021115,7]
[393658185,1762888437319,170.749668,0.000248,7]
[393658186,1762888437618,170.749668,0.000249,7]
[393658187,1762888438131,161.09,0.00023,7]
[393658188,1762888438211,170.749668,0.0002111,7]
[393658189,1762888438502,170.749668,0.00021115,7]
[393658190,1762888438798,170.749668,0.000248,7]
[393658191,1762888439074,170.749668,0.000249,7]
[393658192,1762888439634,170.749668,0.0002111,7]
[393658193,1762888439929,170.749668,0.00021115,7]
[393658194,1762888440210,170.749668,0.000248,7]
[393658195,1762888440498,170.749668,0.000249,7]
[393658196,1762888447033,6303.98,0.000249,7]
[393658197,1762888468834,151.0,0.00024658,7]
[393658198,1762888469299,151.0,0.00024658,7]
[393658199,1762888469707,151.0,0.000249,7]
[393658200,1762888473808,151.0,0.00024658,7]
[393658201,1762888474421,151.0,0.00024658,7]
[393658202,1762888474730,151.0,0.000249,7]
[393658203,1762888475042,151.0,0.000249,7]
[393658204,1762888475629,151.0,0.00024658,7]
[393658205,1762888478383,151.0,0.00024658,7]
[393658206,1762888478812,151.0,0.00024658,7]
[393658207,1762888479155,151.0,0.000249,7]
[393658208,1762888479391,151.0,0.000249,7]
[393658209,1762888510409,151.0,0.0002111,7]
[393658210,1762888510585,151.0,0.0002111,7]
[393658211,1762888510721,151.0,0.00021115,7]
[393658212,1762888510894,151.0,0.00021115,7]
[393658213,1762888511018,151.0,0.000249,7]
[393658214,1762888511204,151.0,0.000249,7]
[393658215,1762888511319,151.0,0.000249,7]
[393658216,1762888525978,151.0,0.00024658,7]
[393658217,1762888526375,151.0,0.00024658,7]
[393658218,1762888526690,151.0,0.000249,7]
[393658219,1762888526862,151.0,0.00021918,7]
[393658220,1762888527074,151.0,0.000249,7]
[393658221,1762888527192,151.0,0.00021918,7]
[393658222,1762888527505,151.0,0.000249,7]
[393658223,1762888527714,172.440824,0.00024658,7]
[393658224,1762888527874,151.0,0.000249,7]
[393658225,1762888528486,151.0,0.00021918,7]
[393658226,1762888528881,151.0,0.00021918,7]
[393658227,1762888529323,151.0,0.000249,7]
[393658228,1762888529643,151.0,0.000249,7]
[393658229,1762888530432,151.0,0.00021918,7]
[393658230,1762888531072,151.0,0.00021918,7]
[393658231,1762888531364,151.0,0.000249,7]
[393658232,1762888531655,200.649648,0.000249,7]
[393658233,1762888573204,161.09,0.00023,7]
[393658234,1762888573957,151.0,0.00021109,7]
[393658235,1762888574245,151.0,0.00021115,7]
[393658236,1762888574527,151.0,0.000249,7]
[393658237,1762888574807,151.0,0.000249,7]
[393658238,1762888577872,151.0,0.00024658,7]
[393658239,1762888578176,151.0,0.00024658,7]
[393658240,1762888578490,151.0,0.000249,7]
[393658241,1762888578792,151.0,0.000249,7]
[393658242,1762888582262,2039.70356,0.000249,7]
[393658243,1762888693616,182.5472272,0.00016307,2]
[393658251,1762889307580,853.68366912,0.00017,2]
[393658252,1762889309897,28926.91873444,0.00015,2]
[393658278,1762889432109,-837.67615262,0.00019977,2]
[393658279,1762889432165,-136.32384738,0.00019977,2]
[393658280,1762889432175,-513.67615262,0.00019977,2]
[393658289,1762889438003,-1061.86066332,0.00019977,2]
[393658429,1762889440261,-404.76238516,0.00019977,2]
[393658431,1762889440271,-1200.0,0.00020945,2]
[393658433,1762889440279,-300.0,0.00020946,2]
[393658435,1762889440289,-211.0,0.00020946,2]
[393658437,1762889440298,-123.90261484,0.00020946,2]
[393658439,1762889440310,-176.09738516,0.00020946,2]
[393658441,1762889440320,-170.526691,0.00020947,2]
[393658462,1762889440429,-5262.90769221,0.00020947,2]
[393658541,1762889443337,-500.0,0.00020947,2]
[393658543,1762889443350,-2748.4039686,0.00020947,2]
[393658854,1762889446534,-1528.15115069,0.00020947,2]
[393658856,1762889446544,-500.0,0.00021004,2]
[393658858,1762889446554,-500.0,0.00021004,2]
[393658860,1762889446564,-500.0,0.00021004,2]
[393658862,1762889446574,-1033.80265304,0.00021004,2]
[393658864,1762889446587,-500.0,0.00021004,2]
[393658866,1762889446597,-563.46598295,0.00021004,2]
[393658868,1762889446607,-1033.80265304,0.00021004,2]
[393658870,1762889446617,-500.0,0.00021004,2]
[393658872,1762889446626,-500.0,0.00021004,2]
[393658874,1762889446637,-500.0,0.00021004,2]
[393658876,1762889446647,-1033.80265304,0.00021004,2]
[393658878,1762889446656,-1033.80265304,0.00021004,2]
[393658880,1762889446666,-374.4816129,0.00021004,2]
[393658882,1762889446675,-420.81403454,0.00021004,2]
[393658884,1762889446685,-1033.80265304,0.00021004,2]
[393658886,1762889446694,-1033.80265304,0.00021004,2]
[393658889,1762889446705,-1033.80265304,0.00021004,2]
[393658890,1762889446715,-1033.80265304,0.00021004,2]
[393658892,1762889446724,-1033.80265304,0.00021004,2]
[393658895,1762889446735,-1033.80265304,0.00021004,2]
[393658897,1762889446745,-1033.80265304,0.00021004,2]
[393658899,1762889446755,-1033.80265304,0.00021004,2]
[393658901,1762889446765,-1033.80265304,0.00021004,2]
[393658903,1762889446774,-1033.80265304,0.00021004,2]
[393658905,1762889446785,-1033.80265304,0.00021004,2]
[393658907,1762889446794,-1033.80265304,0.00021004,2]
[393658909,1762889446804,-1033.80265304,0.00021004,2]
[393658911,1762889446814,-1033.80265304,0.00021004,2]
[393658913,1762889446824,-1033.80265304,0.00021004,2]
[393658915,1762889446834,-1033.80265304,0.00021004,2]
[393658917,1762889446843,-1033.80265304,0.00021004,2]
[393658919,1762889446853,-1033.80265304,0.00021004,2]
[393658921,1762889446863,-1033.80265304,0.00021004,2]
[393658923,1762889446873,-1033.80265304,0.00021004,2]
[393658925,1762889446884,-1033.80265304,0.00021004,2]
[393658927,1762889446893,-1033.80265304,0.00021004,2]
[393658929,1762889446903,-1033.80265304,0.00021004,2]
[393658931,1762889446913,-1033.80265304,0.00021004,2]
[393658933,1762889446923,-1033.80265304,0.00021004,2]
[393658935,1762889446932,-1033.80265304,0.00021004,2]
[393658937,1762889446942,-1033.80265304,0.00021004,2]
[393658939,1762889446956,-1033.80265304,0.00021004,2]
[393658941,1762889446966,-1033.80265304,0.00021004,2]
[393658943,1762889446975,-1033.80265304,0.00021004,2]
[393658945,1762889446986,-1033.80265304,0.00021004,2]
[393658948,1762889446996,-1033.80265304,0.00021004,2]
[393658950,1762889447006,-1033.80265304,0.00021004,2]
[393658952,1762889447016,-1033.80265304,0.00021004,2]
[393658954,1762889447026,-1033.80265304,0.00021004,2]
[393658956,1762889447036,-1033.80265304,0.00021004,2]
[393658958,1762889447046,-1033.80265304,0.00021004,2]
[393658960,1762889447056,-1033.80265304,0.00021004,2]
[393658962,1762889447066,-1033.80265304,0.00021004,2]
[393658964,1762889447075,-1033.80265304,0.00021004,2]
[393658966,1762889447086,-1033.80265304,0.00021004,2]
[393658968,1762889447097,-1033.80265304,0.00021004,2]
[393658970,1762889447106,-1033.80265304,0.00021004,2]
[393658972,1762889447115,-1033.80265304,0.00021004,2]
[393658974,1762889447126,-1033.80265304,0.00021004,2]
[393658975,1762889447137,-1033.80265304,0.00021004,2]
[393658978,1762889447147,-1033.80265304,0.00021004,2]
[393658979,1762889447158,-1033.80265304,0.00021004,2]
[393658982,1762889447169,-1033.80265304,0.00021004,2]
[393658984,1762889447178,-1033.80265304,0.00021004,2]
[393658986,1762889447188,-1033.80265304,0.00021004,2]
[393658987,1762889447197,-1033.80265304,0.00021004,2]
[393658989,1762889447207,-1020.46326398,0.00021004,2]
[393658991,1762889447216,-1020.46326398,0.00021004,2]
[393658993,1762889447227,-1020.46326398,0.00021004,2]
[393658995,1762889447238,-1020.46326398,0.00021004,2]
[393658998,1762889447248,-1020.46326398,0.00021004,2]
[393659000,1762889447257,-1020.46326398,0.00021004,2]
[393659002,1762889447267,-1020.46326398,0.00021004,2]
[393659004,1762889447276,-1020.46326398,0.00021004,2]
[393659006,1762889447285,-1020.46326398,0.00021004,2]
[393659008,1762889447295,-1020.46326398,0.00021004,2]
[393659010,1762889447304,-1020.46326398,0.00021004,2]
[393659012,1762889447313,-1020.46326398,0.00021004,2]
[393659014,1762889447323,-1020.46326398,0.00021004,2]
[393659016,1762889447332,-1020.46326398,0.00021004,2]
[393659018,1762889447341,-1020.46326398,0.00021004,2]
[393659020,1762889447351,-1020.46326398,0.00021004,2]
[393659022,1762889447361,-1020.46326398,0.00021004,2]
[393659024,1762889447370,-181.26296363,0.00021004,2]
[393659026,1762889447381,-1637.80024946,0.00021005,2]
[393659028,1762889447390,-151.0,0.00021005,7]
[393659030,1762889447400,-151.0,0.00021005,7]
[393659032,1762889447409,-151.0,0.00021005,7]
[393659034,1762889447418,-151.0,0.00021006,7]
[393659036,1762889447427,-151.0,0.00021006,7]
[393659038,1762889447437,-570.505392,0.00021006,7]
[393659040,1762889447447,-570.505392,0.00021006,7]
[393659042,1762889447456,-570.505392,0.00021006,7]
[393659043,1762889447465,-570.505392,0.00021006,7]
[393659044,1762889447474,-570.505392,0.00021006,7]
[393659045,1762889447483,-570.505392,0.00021006,7]
[393659046,1762889447492,-570.505392,0.00021006,7]
[393659047,1762889447501,-570.505392,0.00021006,7]
[393659048,1762889447511,-174.784953,0.00021006,7]
[393659049,1762889447520,-174.784953,0.00021006,7]
[393659050,1762889447528,-174.784953,0.00021006,7]
[393659051,1762889447537,-174.784953,0.00021006,7]
[393659052,1762889447547,-174.784953,0.00021006,7]
[393659053,1762889447556,-174.784953,0.00021006,7]
[393659054,1762889447565,-174.784953,0.00021006,7]
[393659056,1762889447574,-174.784953,0.00021006,7]
[393659058,1762889447586,-202.631074,0.00021007,7]
[393659060,1762889447596,-151.0,0.00021007,7]
[393659062,1762889447608,-151.0,0.00021007,7]
[393659064,1762889447618,-151.0,0.00021008,7]
[393659066,1762889447627,-151.0,0.00021008,7]
[393659068,1762889447638,-163.68,0.00021009,2]
[393659070,1762889447647,-19826.22799711,0.00021012,2]
[393659072,1762889447656,-151.0,0.00021012,7]
[393659074,1762889447665,-160.962627,0.00021012,7]
[393659076,1762889447675,-151.0,0.00021012,7]
[393659078,1762889447685,-570.505392,0.00021012,7]
[393659080,1762889447695,-570.505392,0.00021012,7]
[393659082,1762889447704,-570.505392,0.00021012,7]
[393659084,1762889447714,-570.505392,0.00021012,7]
[393659086,1762889447724,-174.784953,0.00021012,7]
[393659088,1762889447734,-174.784953,0.00021012,7]
[393659090,1762889447743,-174.784953,0.00021012,7]
[393659092,1762889447752,-174.784953,0.00021012,7]
[393659094,1762889447762,-151.0,0.00021012,7]
[393659096,1762889447771,-151.0,0.00021108,7]
[393659098,1762889447781,-263.898658,0.00021108,7]
[393659100,1762889447791,-151.0,0.00021109,7]
[393659102,1762889447801,-41668.5781021,0.00021114,2]
[393659104,1762889447810,-168.635705,0.00021114,2]
[393659106,1762889447820,-151.0,0.00021115,7]
[393659108,1762889447829,-229.998671,0.00021115,7]
[393659110,1762889447839,-570.505392,0.00021115,7]
[393659112,1762889447848,-570.505392,0.00021115,7]
[393659114,1762889447858,-570.505392,0.00021115,7]
[393659116,1762889447867,-570.505392,0.00021115,7]
[393659118,1762889447876,-174.784953,0.00021115,7]
[393659120,1762889447886,-174.784953,0.00021115,7]
[393659122,1762889447896,-174.784953,0.00021115,7]
[393659125,1762889447906,-174.784953,0.00021115,7]
[393659126,1762889447916,-994.0723704,0.00021384,2]
[393659128,1762889447925,-151.0,0.00021918,7]
[393659130,1762889447934,-151.0,0.00021918,7]
[393659133,1762889447944,-159.0,0.00022785,2]
[393659135,1762889447953,-420.0,0.00022786,2]
[393659137,1762889447964,-161.09,0.000229,7]
[393659139,1762889447973,-9674.65783355,0.00023498,2]
[393659141,1762889447982,-330.1086792,0.00023949,2]
[393659143,1762889447992,-1320.4347168,0.00023949,2]
[393659145,1762889448001,-2970.9781128,0.00023949,2]
[393659147,1762889448011,-5276.45712833,0.00023949,2]
[393659149,1762889448021,-210.13716192,0.00023949,2]
[393659150,1762889448030,-840.54864767,0.00023949,2]
[393659153,1762889448040,-1891.23445726,0.00023949,2]
[393659155,1762889448050,-3362.19459069,0.00023949,2]
[393659156,1762889448059,-5248.17561891,0.00023949,2]
[393659159,1762889448069,-3613.5708678,0.00024118,2]
[393659161,1762889448080,-419.61465712,0.00024185,2]
[393659163,1762889448093,-151.0,0.000243,8]
[393659165,1762889448103,-151.0,0.00024658,7]
[393659167,1762889448112,-151.0,0.00024658,7]
[393659169,1762889448122,-151.0,0.00024658,7]
[393659171,1762889448134,-151.0,0.00024658,7]
[393659173,1762889448143,-233.167898,0.00024658,7]
[393659175,1762889448153,-151.0,0.00024658,7]
[393659177,1762889448163,-151.0,0.00024658,7]
[393659179,1762889448172,-227.551134,0.00024658,7]
[393659181,1762889448182,-151.0,0.00024658,7]
[393659183,1762889448192,-151.0,0.00024658,7]
[393659185,1762889448203,-151.639312,0.00024658,7]
[393659187,1762889448213,-181.093957,0.00024658,7]
[393659189,1762889448222,-151.0,0.00024658,7]
[393659191,1762889448231,-151.0,0.00024658,7]
[393659193,1762889448241,-151.0,0.00024658,7]
[393659195,1762889448250,-151.0,0.00024658,7]
[393659197,1762889448260,-151.0,0.00024658,7]
[393659199,1762889448269,-154.433223,0.00024658,7]
[393659201,1762889448278,-191.355236,0.00024658,7]
[393659203,1762889448287,-158.831124,0.00024658,7]
[393659205,1762889448296,-151.0,0.00024658,7]
[393659207,1762889448306,-151.0,0.00024658,7]
[393659209,1762889448316,-151.0,0.00024658,7]
[393659211,1762889448327,-151.0,0.00024658,7]
[393659213,1762889448336,-151.0,0.00024658,7]
[393659215,1762889448346,-151.0,0.00024658,7]
[393659217,1762889448356,-151.0,0.00024658,7]
[393659219,1762889448365,-151.0,0.00024658,7]
[393659221,1762889448375,-151.0,0.00024658,7]
[393659223,1762889448386,-151.0,0.00024658,7]
[393659225,1762889448397,-159.429616,0.00024658,7]
[393659227,1762889448406,-151.0,0.00024658,7]
[393659229,1762889448416,-151.0,0.00024658,7]
[393659231,1762889448425,-151.0,0.00024658,7]
[393659233,1762889448435,-151.0,0.00024658,7]
[393659235,1762889448445,-151.0,0.00024658,7]
[393659237,1762889448454,-151.0,0.00024658,7]
[393659239,1762889448463,-151.0,0.00024658,7]
[393659241,1762889448472,-165.291023,0.00024658,7]
[393659243,1762889448482,-165.291023,0.00024658,7]
[393659245,1762889448491,-165.291023,0.00024658,7]
[393659247,1762889448511,-165.291023,0.00024658,7]
[393659249,1762889448520,-165.291023,0.00024658,7]
[393659251,1762889448530,-165.291023,0.00024658,7]
[393659253,1762889448540,-165.291023,0.00024658,7]
[393659255,1762889448549,-165.291023,0.00024658,7]
[393659257,1762889448559,-165.291023,0.00024658,7]
[393659259,1762889448568,-165.291023,0.00024658,7]
[393659262,1762889448578,-165.291023,0.00024658,7]
[393659264,1762889448588,-165.291023,0.00024658,7]
[393659266,1762889448598,-165.291023,0.00024658,7]
[393659268,1762889448608,-165.291023,0.00024658,7]
[393659270,1762889448617,-165.291023,0.00024658,7]
[393659272,1762889448626,-165.291023,0.00024658,7]
[393659274,1762889448636,-165.291023,0.00024658,7]
[393659275,1762889448646,-165.291023,0.00024658,7]
[393659278,1762889448656,-165.291023,0.00024658,7]
[393659280,1762889448666,-165.291016,0.00024658,7]
[393659282,1762889448676,-5530.98703212,0.000248,2]
[393659284,1762889448686,-174.784953,0.000248,7]
[393659286,1762889448695,-174.784953,0.000248,7]
[393659287,1762889448705,-174.784953,0.000248,7]
[393659290,1762889448714,-174.784961,0.000248,7]
[393659291,1762889448724,-1185.6542115,0.000249,2]
[393659294,1762889448733,-3633.87644,0.000249,7]
[393659296,1762889448743,-151.0,0.000249,7]
[393659298,1762889448752,-151.0,0.000249,7]
[393659299,1762889448762,-151.0,0.000249,7]
[393659302,1762889448771,-151.0,0.000249,7]
[393659304,1762889448782,-151.0,0.000249,8]
[393659306,1762889448791,-151.0,0.000249,7]
[393659308,1762889448801,-570.505392,0.000249,7]
[393659310,1762889448811,-570.505392,0.000249,7]
[393659312,1762889448821,-570.505392,0.000249,7]
[393659314,1762889448831,-570.505396,0.000249,7]
[393659316,1762889448840,-42318.1548472,0.000249,2]
[393659318,1762889448850,-14106.0516157,0.00025099,2]
[393659320,1762889448860,-1843.66234404,0.00025099,2]
[393659322,1762889448869,-16227.72841066,0.00025109,2]
[393659324,1762889448878,-244.03,0.00025255,2]
[393659326,1762889448890,-151.0,0.000254,14]
[393659328,1762889448899,-413.0,0.00025963,2]
[393659329,1762889448909,-151.0,0.00026,15]
[393659331,1762889448920,-151.0,0.00026088,7]
[393659333,1762889448929,-418.342021,0.00026676,2]
[393659334,1762889448939,-177.84,0.00027049,2]
[393659336,1762889448948,-180.70330107,0.00027149,2]
[393659338,1762889448957,-488.07,0.00027551,2]
[393659340,1762889448967,-300.0,0.000278,2]
[393659341,1762889448976,-300.0,0.000278,2]
[393659343,1762889448985,-300.0,0.000278,2]
[393659345,1762889448995,-300.0,0.000278,2]
[393659347,1762889449005,-201.43862532,0.00027933,2]
[393659348,1762889449015,-804.94874679,0.00027933,2]
[393659350,1762889449024,-202.14967156,0.00027933,2]
[393659352,1762889449033,-291.72350229,0.00027933,2]
[393659354,1762889449043,-1166.89400916,0.00027933,2]
[393659355,1762889449052,-2622.88600908,0.00027933,2]
[393659357,1762889449062,-402.98311887,0.00027933,2]
[393659359,1762889449072,-151.0,0.00027933,31]
[393659361,1762889449082,-182.72977443,0.00028635,2]
[393659363,1762889449096,-413.0,0.00028963,2]
[393659364,1762889449105,-161.09,0.00029,7]
[393659366,1762889449115,-806.2966464,0.00029288,2]
[393659368,1762889449124,-303.92820922,0.0002939,7]
[393659370,1762889449136,-251.59029241,0.0002939,7]
[393659371,1762889449145,-732.1,0.00029847,2]
[393659373,1762889449154,-2000.0,0.00030287,7]
[393659375,1762889449163,-179.9090998,0.00030442,2]
[393659377,1762889449173,-413.0,0.00031963,2]
[393659379,1762889449182,-976.14,0.00032143,2]
[393659380,1762889449192,-5673.58,0.000322,7]
[393659382,1762889449201,-151.0,0.000322,31]
[393659384,1762889449211,-14106.0516157,0.00032212,2]
[393659386,1762889449220,-1843.66234404,0.00032212,2]
[393659387,1762889449229,-156.608542,0.00032403,3]
[393659389,1762889449239,-2000.0,0.00032478,7]
[393659391,1762889449250,-1467.73230226,0.000329,120]
[393659393,1762889449260,-156.608542,0.00033007,2]
[393659395,1762889449269,-199.0,0.0003315,14]
[393659396,1762889449279,-418.342021,0.00033165,2]
[393659398,1762889449288,-203.0,0.0003327,35]
[393659400,1762889449298,-199.0,0.00033698,15]
[393659413,1762889449435,-1467.73230226,0.000339,120]
[393659414,1762889449444,-600.0,0.00033989,30]
[393659416,1762889449454,-156.608542,0.00034015,7]
[393659418,1762889449463,-16227.72841065,0.00034145,2]
[393659420,1762889449472,-394.8903454,0.00034196,30]
[393659422,1762889449482,-394.8903454,0.00034196,30]
[393659423,1762889449491,-394.8903454,0.00034196,30]
[393659425,1762889449500,-360.1194819,0.00034196,30]
[393659427,1762889449510,-199.0,0.00034246,16]
[393659429,1762889449519,-161.09,0.000343,7]
[393659431,1762889449529,-1220.17,0.00034439,2]
[393659433,1762889449539,-170.526691,0.00034645,60]
[393659435,1762889449548,-2000.0,0.00034668,7]
[393659436,1762889449557,-199.0,0.00034794,17]
[393659438,1762889449567,-1467.73230226,0.000349,120]
[393659440,1762889449577,-413.0,0.00034963,2]
[393659442,1762889449586,-999.0,0.00035068,120]
[393659444,1762889449595,-199.0,0.00035342,18]
[393659446,1762889449605,-379.5219454,0.00035566,30]
[393659448,1762889449614,-171.22225454,0.00035616,2]
[393659450,1762889449623,-5673.58,0.000357,14]
[393659452,1762889449634,-199.0,0.0003589,19]
[393659454,1762889449643,-1467.73230226,0.000359,120]
[393659455,1762889449652,-999.0,0.00036164,120]
[393659457,1762889449661,-156.608542,0.00036278,10]
[393659459,1762889449670,-305.485025,0.00036372,10]
[393659461,1762889449679,-2509.93874518,0.00036372,7]
[393659463,1762889449692,-199.0,0.00036438,20]
[393659465,1762889449701,-500.0,0.00036579,13]
[393659467,1762889449710,-500.0,0.00036579,13]
[393659469,1762889449720,-14106.0516157,0.00036657,3]
[393659471,1762889449730,-1843.66234404,0.00036657,3]
[393659473,1762889449739,-156.608542,0.00036704,10]
[393659475,1762889449748,-1464.21,0.00036735,2]
[393659477,1762889449758,-156.608542,0.00036772,7]
[393659478,1762889449766,-2000.0,0.00036858,7]
[393659480,1762889449777,-199.0,0.00036986,21]
[393659482,1762889449786,-1467.73230226,0.00037,120]
[393659484,1762889449795,-156.608542,0.00037118,3]
[393659486,1762889449804,-242.64307067,0.0003726,120]
[393659488,1762889449813,-161.09,0.000373,7]
[393659490,1762889449823,-720.0,0.00037388,30]
[393659492,1762889449834,-199.0,0.00037534,22]
[393659494,1762889449843,-404.42164374,0.00037753,120]
[393659495,1762889449853,-413.0,0.00037963,2]
[393659497,1762889449863,-199.0,0.00038082,23]
[393659499,1762889449872,-156.608542,0.000386,2]
[393659501,1762889449882,-199.0,0.0003863,24]
[393659503,1762889449891,-1708.24,0.00039031,2]
[393659505,1762889449900,-2000.0,0.00039048,21]
[393659507,1762889449910,-199.0,0.00039178,25]
[393659509,1762889449919,-5673.58,0.000392,14]
[393659510,1762889449929,-156.608542,0.00039529,7]
[393659512,1762889449939,-418.342021,0.00039654,2]
[393659514,1762889449950,-199.0,0.00039726,26]
[393659516,1762889449959,-28212.1032315,0.0003999,3]
[393659518,1762889449968,-3687.32468808,0.0003999,3]
[393659520,1762889449977,-279.77515065,0.0004,2]
[393659537,1762889456979,300.0,0.00015,2]
[393659543,1762890093626,313.756515,0.00013699,2]
[393659590,1762890632327,-1795.94053653,0.00019677,2]
[393659599,1762890632402,-3179.08980628,0.00019677,2]
[393659960,1762890643631,-2661.61000003,0.00019677,2]
[393659966,1762890646566,-865.51289928,0.00019677,2]
[393659967,1762890646575,-958.0,0.00019677,2]
[393659968,1762890646585,-206.28193926,0.00019777,2]
[393659969,1762890646594,-219.53328892,0.00019877,2]
[393659970,1762890646603,-300.0,0.00020186,2]
[393659971,1762890646612,-313.756515,0.00020187,2]
[393659972,1762890646621,-500.0,0.00020994,2]
[393659973,1762890646631,-500.0,0.00020994,2]
[393659974,1762890646640,-500.0,0.00020994,2]
[393659975,1762890646649,-511.51767416,0.00020994,2]
[393659976,1762890646659,-500.0,0.00020994,2]
[393659977,1762890646669,-500.0,0.00020994,2]
[393659978,1762890646678,-500.0,0.00020994,2]
[393659979,1762890646687,-500.0,0.00020994,2]
[393659980,1762890646696,-500.0,0.00020994,2]
[393659981,1762890646705,-500.0,0.00020994,2]
[393659982,1762890646714,-500.0,0.00020994,2]
[393659983,1762890646724,-500.0,0.00020994,2]
[393659984,1762890646733,-500.0,0.00020994,2]
[393659985,1762890646742,-500.0,0.00020994,2]
[393659986,1762890646752,-500.0,0.00020994,2]
[393659987,1762890646762,-500.0,0.00020994,2]
[393659988,1762890646771,-500.0,0.00020994,2]
[393659989,1762890646780,-325.49712173,0.00020994,2]
[393659990,1762890646789,-500.0,0.00020994,2]
[393659991,1762890646798,-500.0,0.00020994,2]
[393659992,1762890646807,-500.0,0.00020994,2]
[393659993,1762890646816,-500.0,0.00020994,2]
[393659994,1762890646825,-500.0,0.00020994,2]
[393659995,1762890646834,-500.0,0.00020994,2]
[393659996,1762890646843,-500.0,0.00020994,2]
[393659997,1762890646852,-500.0,0.00020994,2]
[393659998,1762890646862,-500.0,0.00020994,2]
[393659999,1762890646871,-500.0,0.00020994,2]
[393660000,1762890646881,-500.0,0.00020994,2]
[393660001,1762890646891,-500.0,0.00020994,2]
[393660002,1762890646900,-500.0,0.00020994,2]
[393660003,1762890646909,-500.0,0.00020994,2]
[393660004,1762890646919,-500.0,0.00020994,2]
[393660005,1762890646928,-500.0,0.00020994,2]
[393660006,1762890647050,-500.0,0.00020994,2]
[393660007,1762890647064,-500.0,0.00020994,2]
[393660008,1762890647074,-500.0,0.00020994,2]
[393660009,1762890647085,-500.0,0.00020994,2]
[393660010,1762890647096,-500.0,0.00020994,2]
[393660011,1762890647106,-500.0,0.00020994,2]
[393660012,1762890647115,-500.0,0.00020994,2]
[393660013,1762890647125,-600.0,0.00021423,20]
[393660014,1762890647134,-394.8090703,0.00022586,2]
[393660015,1762890647144,-652.28284492,0.00022644,2]
[393660016,1762890647155,-215.8156208,0.00022743,2]
[393660017,1762890647164,-720.0,0.00023565,20]
[393660018,1762890647174,-247.2971769,0.00024155,2]
[393660019,1762890647184,-157.07,0.00025341,2]
[393660020,1762890647194,-864.0,0.00025922,20]
[393660021,1762890647204,-313.756515,0.00026676,2]
[393660022,1762890647213,-314.14,0.00027645,2]
[393660023,1762890647223,-1000.0,0.00028514,30]
[393660024,1762890647233,-471.21,0.00029949,2]